[Event "January 9 Early 2024"]
[Site "https://www.chess.com"]
[Date "2024.01.11"]
[Round "5"]
[White "Mammadov, Ziya"]
[Black "Modric, Nesa"]
[Result "0-1"]
[Board "180"]
[TimeControl "180+1"]
[WhiteFideId "13418890"]
[BlackFideId "922579"]
[WhiteElo "1955"]
[BlackElo "2208"]
[WhiteTeam "AZE"]
[BlackTeam "SRB"]
[WhiteClock "0:00:01"]
[BlackClock "0:00:31"]

1. e4 {[%clk 0:02:53]}  c6 {[%clk 0:02:59]} 2. d4 {[%clk 0:02:50]}  d5 {[%clk 0:02:59]} 3. exd5 {[%clk 0:02:51]}  cxd5 {[%clk 0:02:58]} 4. c4 {[%clk 0:02:52]}  Nc6 {[%clk 0:02:57]} 5. Nc3 {[%clk 0:02:53]}  Nf6 {[%clk 0:02:55]} 6. Nf3 {[%clk 0:02:54]}  e6 {[%clk 0:02:55]} 7. Be2 {[%clk 0:02:55]}  a6 {[%clk 0:02:54]} 8. O-O {[%clk 0:02:55]}  dxc4 {[%clk 0:02:54]} 9. Bxc4 {[%clk 0:02:53]}  b5 {[%clk 0:02:54]} 10. Bb3 {[%clk 0:02:47]}  Bb7 {[%clk 0:02:54]} 11. Be3 {[%clk 0:02:44]}  Nb4 {[%clk 0:02:53]} 12. a3 {[%clk 0:02:42]}  Nbd5 {[%clk 0:02:52]} 13. Nxd5 {[%clk 0:02:32]}  Nxd5 {[%clk 0:02:45]} 14. Rc1 {[%clk 0:02:33]}  Be7 {[%clk 0:02:44]} 15. Qd3 {[%clk 0:02:27]}  O-O {[%clk 0:02:43]} 16. Bc2 {[%clk 0:02:26]}  g6 {[%clk 0:02:42]} 17. Bh6 {[%clk 0:02:19]}  Re8 {[%clk 0:02:41]} 18. Ne5 {[%clk 0:02:15]}  Bf6 {[%clk 0:02:37]} 19. Ng4 {[%clk 0:02:08]}  Bg7 {[%clk 0:02:36]} 20. Bxg7 {[%clk 0:02:06]}  Kxg7 {[%clk 0:02:36]} 21. Bb3 {[%clk 0:02:06]}  Qg5 {[%clk 0:02:22]} 22. f3 {[%clk 0:02:00]}  Rac8 {[%clk 0:02:16]} 23. Rxc8 {[%clk 0:01:45]}  Rxc8 {[%clk 0:02:10]} 24. Bxd5 {[%clk 0:01:40]}  Bxd5 {[%clk 0:02:09]} 25. Qe3 {[%clk 0:01:36]}  Qxe3+ {[%clk 0:02:02]} 26. Nxe3 {[%clk 0:01:37]}  Bb3 {[%clk 0:01:56]} 27. Kf2 {[%clk 0:01:25]}  f5 {[%clk 0:01:53]} 28. Re1 {[%clk 0:01:12]}  Kf6 {[%clk 0:01:52]} 29. g4 {[%clk 0:01:05]}  Rd8 {[%clk 0:01:40]} 30. gxf5 {[%clk 0:00:46]}  gxf5 {[%clk 0:01:38]} 31. Rc1 {[%clk 0:00:29]}  Rxd4 {[%clk 0:01:32]} 32. Ke2 {[%clk 0:00:30]}  Rh4 {[%clk 0:01:26]} 33. Rh1 {[%clk 0:00:26]}  h5 {[%clk 0:01:17]} 34. Ng2 {[%clk 0:00:22]}  Rc4 {[%clk 0:01:12]} 35. Ne3 {[%clk 0:00:22]}  Rh4 {[%clk 0:01:08]} 36. Ng2 {[%clk 0:00:22]}  Rd4 {[%clk 0:01:03]} 37. Ne3 {[%clk 0:00:19]}  f4 {[%clk 0:00:59]} 38. Ng2 {[%clk 0:00:18]}  Bc4+ {[%clk 0:00:57]} 39. Ke1 {[%clk 0:00:15]}  e5 {[%clk 0:00:52]} 40. Rg1 {[%clk 0:00:08]}  Bb3 {[%clk 0:00:51]} 41. Ke2 {[%clk 0:00:07]}  Bc4+ {[%clk 0:00:46]} 42. Ke1 {[%clk 0:00:08]}  Rd3 {[%clk 0:00:46]} 43. Nh4 {[%clk 0:00:07]}  Re3+ {[%clk 0:00:45]} 44. Kd2 {[%clk 0:00:07]}  Re2+ {[%clk 0:00:40]} 45. Kd1 {[%clk 0:00:07]}  Rxh2 {[%clk 0:00:40]} 46. Ng2 {[%clk 0:00:07]}  h4 {[%clk 0:00:35]} 47. Ne1 {[%clk 0:00:01]}  h3 {[%clk 0:00:32]} 48. Kc1 {[%clk 0:00:01]}  Rf2 {[%clk 0:00:31]} 0-1

[Event "January 9 Early 2024"]
[Site "https://www.chess.com"]
[Date "2024.01.11"]
[Round "5"]
[White "Tasev, Dejan"]
[Black "Zhukov, Maksim"]
[Result "1-0"]
[Board "182"]
[TimeControl "180+1"]
[WhiteFideId "936618"]
[BlackFideId "34181790"]
[WhiteElo "2657"]
[BlackElo "2338"]
[WhiteTeam "SRB"]
[BlackTeam "RUS"]
[WhiteClock "0:01:10"]
[BlackClock "0:00:03"]

1. e4 {[%clk 0:03:00]}  c5 {[%clk 0:02:57]} 2. Nf3 {[%clk 0:03:00]}  e6 {[%clk 0:02:57]} 3. Nc3 {[%clk 0:03:00]}  a6 {[%clk 0:02:57]} 4. g3 {[%clk 0:03:00]}  b5 {[%clk 0:02:57]} 5. Bg2 {[%clk 0:03:00]}  Bb7 {[%clk 0:02:58]} 6. d3 {[%clk 0:03:00]}  Nf6 {[%clk 0:02:58]} 7. a4 {[%clk 0:03:00]}  b4 {[%clk 0:02:57]} 8. Nb1 {[%clk 0:03:00]}  Nc6 {[%clk 0:02:57]} 9. b3 {[%clk 0:03:01]}  Be7 {[%clk 0:02:57]} 10. Bb2 {[%clk 0:03:01]}  O-O {[%clk 0:02:57]} 11. O-O {[%clk 0:03:01]}  d5 {[%clk 0:02:57]} 12. Nbd2 {[%clk 0:03:02]}  a5 {[%clk 0:02:56]} 13. exd5 {[%clk 0:02:59]}  exd5 {[%clk 0:02:54]} 14. Re1 {[%clk 0:02:55]}  Re8 {[%clk 0:02:54]} 15. Nf1 {[%clk 0:02:52]}  c4 {[%clk 0:02:46]} 16. Ne3 {[%clk 0:02:48]}  c3 {[%clk 0:02:36]} 17. Bc1 {[%clk 0:02:47]}  Bc5 {[%clk 0:02:25]} 18. d4 {[%clk 0:02:44]}  Bb6 {[%clk 0:02:21]} 19. h3 {[%clk 0:02:40]}  Ne4 {[%clk 0:02:21]} 20. Bf1 {[%clk 0:02:31]}  Qf6 {[%clk 0:02:12]} 21. Nxd5 {[%clk 0:02:26]}  Qd8 {[%clk 0:01:32]} 22. Nxb6 {[%clk 0:02:22]}  Qxb6 {[%clk 0:01:31]} 23. Be3 {[%clk 0:02:22]}  Qd8 {[%clk 0:01:24]} 24. Bb5 {[%clk 0:02:13]}  Qf6 {[%clk 0:01:05]} 25. d5 {[%clk 0:02:09]}  Ne5 {[%clk 0:01:03]} 26. Nxe5 {[%clk 0:02:07]}  Rxe5 {[%clk 0:00:56]} 27. Bc4 {[%clk 0:02:02]}  Rd8 {[%clk 0:00:43]} 28. Qg4 {[%clk 0:01:48]}  Bc8 {[%clk 0:00:22]} 29. Qf4 {[%clk 0:01:46]}  Bxh3 {[%clk 0:00:20]} 30. Qxf6 {[%clk 0:01:43]}  Nxf6 {[%clk 0:00:20]} 31. Bb6 {[%clk 0:01:39]}  Rxe1+ {[%clk 0:00:19]} 32. Rxe1 {[%clk 0:01:39]}  Rd6 {[%clk 0:00:15]} 33. Bxa5 {[%clk 0:01:36]}  h5 {[%clk 0:00:15]} 34. Bxb4 {[%clk 0:01:35]}  Rd8 {[%clk 0:00:15]} 35. d6 {[%clk 0:01:32]}  Ne8 {[%clk 0:00:12]} 36. Ba5 {[%clk 0:01:31]}  Rxd6 {[%clk 0:00:12]} 37. Rxe8+ {[%clk 0:01:31]}  Kh7 {[%clk 0:00:12]} 38. Re1 {[%clk 0:01:31]}  Bg4 {[%clk 0:00:11]} 39. Bxc3 {[%clk 0:01:30]}  g6 {[%clk 0:00:11]} 40. a5 {[%clk 0:01:30]}  Bf3 {[%clk 0:00:10]} 41. a6 {[%clk 0:01:30]}  Rd7 {[%clk 0:00:09]} 42. Bd3 {[%clk 0:01:28]}  h4 {[%clk 0:00:09]} 43. Kh2 {[%clk 0:01:25]}  hxg3+ {[%clk 0:00:09]} 44. Kxg3 {[%clk 0:01:24]}  Bh5 {[%clk 0:00:09]} 45. Bd2 {[%clk 0:01:21]}  Kg7 {[%clk 0:00:09]} 46. Be3 {[%clk 0:01:22]}  f6 {[%clk 0:00:09]} 47. a7 {[%clk 0:01:22]}  Rd8 {[%clk 0:00:09]} 48. Be4 {[%clk 0:01:22]}  f5 {[%clk 0:00:09]} 49. Bg2 {[%clk 0:01:21]}  f4+ {[%clk 0:00:10]} 50. Bxf4 {[%clk 0:01:21]}  g5 {[%clk 0:00:09]} 51. Bb8 {[%clk 0:01:20]}  Bf3 {[%clk 0:00:08]} 52. Bxf3 {[%clk 0:01:19]}  g4 {[%clk 0:00:08]} 53. Bg2 {[%clk 0:01:19]}  Kg6 {[%clk 0:00:08]} 54. a8=Q {[%clk 0:01:19]}  Rf8 {[%clk 0:00:07]} 55. Qe4+ {[%clk 0:01:19]}  Rf5 {[%clk 0:00:07]} 56. Qxg4+ {[%clk 0:01:17]}  Kf6 {[%clk 0:00:07]} 57. Qd4+ {[%clk 0:01:15]}  Kg6 {[%clk 0:00:06]} 58. Be4 {[%clk 0:01:14]}  Kf7 {[%clk 0:00:03]} 59. Bxf5 {[%clk 0:01:12]}  Kf8 {[%clk 0:00:04]} 60. Bd6+ {[%clk 0:01:11]}  Kf7 {[%clk 0:00:04]} 61. Re7+ {[%clk 0:01:11]}  Kg8 {[%clk 0:00:03]} 62. Qg7# {[%clk 0:01:10]} 1-0

[Event "January 9 Early 2024"]
[Site "https://www.chess.com"]
[Date "2024.01.11"]
[Round "5"]
[White "Devaev, Alexander"]
[Black "Zilleruelo Irizarry, Diego"]
[Result "0-1"]
[Board "183"]
[TimeControl "180+1"]
[WhiteFideId "4169395"]
[BlackFideId "3101460"]
[WhiteElo "2498"]
[BlackElo "2335"]
[WhiteTeam "RUS"]
[BlackTeam "PUR"]
[WhiteClock "0:00:24"]
[BlackClock "0:00:19"]

1. d4 {[%clk 0:02:59]}  d5 {[%clk 0:02:57]} 2. Nf3 {[%clk 0:02:57]}  Nf6 {[%clk 0:02:56]} 3. Bf4 {[%clk 0:02:57]}  c5 {[%clk 0:02:55]} 4. e3 {[%clk 0:02:58]}  Qb6 {[%clk 0:02:55]} 5. Qc1 {[%clk 0:02:57]}  Nc6 {[%clk 0:02:54]} 6. c3 {[%clk 0:02:58]}  Bg4 {[%clk 0:02:53]} 7. Nbd2 {[%clk 0:02:57]}  Bxf3 {[%clk 0:02:49]} 8. Nxf3 {[%clk 0:02:56]}  e6 {[%clk 0:02:48]} 9. Bd3 {[%clk 0:02:55]}  Rc8 {[%clk 0:02:48]} 10. O-O {[%clk 0:02:55]}  cxd4 {[%clk 0:02:44]} 11. exd4 {[%clk 0:02:54]}  Be7 {[%clk 0:02:41]} 12. Re1 {[%clk 0:02:53]}  O-O {[%clk 0:02:40]} 13. Qd2 {[%clk 0:02:52]}  Na5 {[%clk 0:02:37]} 14. Ne5 {[%clk 0:02:48]}  Nc4 {[%clk 0:02:34]} 15. Nxc4 {[%clk 0:02:30]}  dxc4 {[%clk 0:02:34]} 16. Bc2 {[%clk 0:02:30]}  Nd5 {[%clk 0:02:31]} 17. Be5 {[%clk 0:02:28]}  Bd6 {[%clk 0:02:27]} 18. Rab1 {[%clk 0:02:28]}  Bxe5 {[%clk 0:02:25]} 19. Rxe5 {[%clk 0:02:29]}  f5 {[%clk 0:02:02]} 20. a3 {[%clk 0:02:12]}  Rf6 {[%clk 0:02:00]} 21. Bd1 {[%clk 0:02:10]}  Ne7 {[%clk 0:01:45]} 22. Bf3 {[%clk 0:02:06]}  Ng6 {[%clk 0:01:44]} 23. Re2 {[%clk 0:02:06]}  Nh4 {[%clk 0:01:43]} 24. Qe3 {[%clk 0:01:53]}  Qd6 {[%clk 0:01:32]} 25. Rbe1 {[%clk 0:01:50]}  Rcf8 {[%clk 0:01:31]} 26. g3 {[%clk 0:01:47]}  f4 {[%clk 0:01:25]} 27. gxf4 {[%clk 0:01:36]}  Nxf3+ {[%clk 0:01:16]} 28. Qxf3 {[%clk 0:01:36]}  Rxf4 {[%clk 0:01:16]} 29. Qg3 {[%clk 0:01:25]}  R8f6 {[%clk 0:01:11]} 30. Rxe6 {[%clk 0:01:20]}  Rxe6 {[%clk 0:00:41]} 31. Rxe6 {[%clk 0:01:19]}  Qxe6 {[%clk 0:00:33]} 32. Qxf4 {[%clk 0:01:19]}  Qg6+ {[%clk 0:00:31]} 33. Qg3 {[%clk 0:01:11]}  Qb1+ {[%clk 0:00:30]} 34. Kg2 {[%clk 0:01:11]}  Qxb2 {[%clk 0:00:27]} 35. Qb8+ {[%clk 0:01:02]}  Kf7 {[%clk 0:00:27]} 36. Qc7+ {[%clk 0:01:02]}  Kg6 {[%clk 0:00:28]} 37. Qd6+ {[%clk 0:00:50]}  Kf7 {[%clk 0:00:25]} 38. Qf4+ {[%clk 0:00:34]}  Ke6 {[%clk 0:00:22]} 39. Qe4+ {[%clk 0:00:35]}  Kf7 {[%clk 0:00:22]} 40. Qf5+ {[%clk 0:00:33]}  Ke7 {[%clk 0:00:22]} 41. Qc5+ {[%clk 0:00:29]}  Kf6 {[%clk 0:00:19]} 42. Qf5+ {[%clk 0:00:24]}  Kxf5 {[%clk 0:00:19]} 0-1

[Event "January 9 Early 2024"]
[Site "https://www.chess.com"]
[Date "2024.01.11"]
[Round "5"]
[White "Sultanbek, Zeinep"]
[Black "Batsiashvili, Nino"]
[Result "0-1"]
[Board "184"]
[TimeControl "180+1"]
[WhiteFideId "13710419"]
[BlackFideId "13602993"]
[WhiteElo "2308"]
[BlackElo "2512"]
[WhiteTeam "KAZ"]
[BlackTeam "GEO"]
[WhiteClock "0:00:02"]
[BlackClock "0:00:19"]

1. d4 {[%clk 0:02:46]}  g6 {[%clk 0:02:58]} 2. c4 {[%clk 0:02:46]}  Bg7 {[%clk 0:02:58]} 3. Nc3 {[%clk 0:02:46]}  f5 {[%clk 0:02:58]} 4. Nf3 {[%clk 0:02:44]}  Nf6 {[%clk 0:02:59]} 5. g3 {[%clk 0:02:45]}  O-O {[%clk 0:02:59]} 6. Bg2 {[%clk 0:02:46]}  d6 {[%clk 0:02:59]} 7. O-O {[%clk 0:02:45]}  c6 {[%clk 0:03:00]} 8. Re1 {[%clk 0:02:38]}  Qc7 {[%clk 0:02:51]} 9. b3 {[%clk 0:02:29]}  e5 {[%clk 0:02:48]} 10. dxe5 {[%clk 0:01:57]}  dxe5 {[%clk 0:02:46]} 11. e4 {[%clk 0:01:58]}  f4 {[%clk 0:02:34]} 12. Ba3 {[%clk 0:01:38]}  Rd8 {[%clk 0:02:27]} 13. Qc2 {[%clk 0:01:39]}  Bg4 {[%clk 0:02:13]} 14. Rad1 {[%clk 0:01:32]}  Na6 {[%clk 0:02:11]} 15. Rxd8+ {[%clk 0:01:19]}  Rxd8 {[%clk 0:02:09]} 16. Rd1 {[%clk 0:01:20]}  Re8 {[%clk 0:02:04]} 17. Bd6 {[%clk 0:01:02]}  Qc8 {[%clk 0:02:04]} 18. Rd2 {[%clk 0:00:55]}  Nh5 {[%clk 0:01:59]} 19. b4 {[%clk 0:00:41]}  Nc7 {[%clk 0:01:11]} 20. Qb3 {[%clk 0:00:37]}  h6 {[%clk 0:01:01]} 21. h3 {[%clk 0:00:30]}  Bxf3 {[%clk 0:00:52]} 22. Bxf3 {[%clk 0:00:30]}  fxg3 {[%clk 0:00:47]} 23. Bxh5 {[%clk 0:00:18]}  gxh5 {[%clk 0:00:44]} 24. fxg3 {[%clk 0:00:17]}  Ne6 {[%clk 0:00:27]} 25. c5 {[%clk 0:00:16]}  Kh7 {[%clk 0:00:26]} 26. h4 {[%clk 0:00:11]}  Nd4 {[%clk 0:00:21]} 27. Qd1 {[%clk 0:00:11]}  Qh3 {[%clk 0:00:20]} 28. Rg2 {[%clk 0:00:08]}  Qg4 {[%clk 0:00:19]} 29. Qxg4 {[%clk 0:00:07]}  hxg4 {[%clk 0:00:20]} 30. Rf2 {[%clk 0:00:05]}  Nf3+ {[%clk 0:00:17]} 31. Kg2 {[%clk 0:00:05]}  h5 {[%clk 0:00:18]} 32. Nd1 {[%clk 0:00:05]}  Kg6 {[%clk 0:00:17]} 33. Ne3 {[%clk 0:00:05]}  Nd4 {[%clk 0:00:18]} 34. Nf5 {[%clk 0:00:05]}  Bf6 {[%clk 0:00:18]} 35. Nxd4 {[%clk 0:00:02]}  exd4 {[%clk 0:00:19]} 36. Re2 {[%clk 0:00:01]}  Be5 {[%clk 0:00:17]} 37. Bxe5 {[%clk 0:00:01]}  Rxe5 {[%clk 0:00:18]} 38. Kf2 {[%clk 0:00:01]}  Kf6 {[%clk 0:00:18]} 39. Ke1 {[%clk 0:00:02]}  Re7 {[%clk 0:00:18]} 40. Kd2 {[%clk 0:00:02]}  Ke5 {[%clk 0:00:18]} 41. Kd3 {[%clk 0:00:02]}  Rf7 {[%clk 0:00:19]} 42. Rf2 {[%clk 0:00:02]}  Rxf2 {[%clk 0:00:19]} 0-1

[Event "January 9 Early 2024"]
[Site "https://www.chess.com"]
[Date "2024.01.11"]
[Round "5"]
[White "Sofronie, Claudia-Ramona"]
[Black "Teimouri Yadkuri, Shahdad"]
[Result "0-1"]
[Board "186"]
[TimeControl "180+1"]
[WhiteFideId "1205722"]
[BlackFideId "42515467"]
[WhiteElo "2268"]
[BlackElo "2427"]
[WhiteTeam "ROU"]
[BlackTeam "IRI"]
[WhiteClock "0:00:01"]
[BlackClock "0:00:17"]

1. d4 {[%clk 0:03:00]}  Nf6 {[%clk 0:02:59]} 2. Bf4 {[%clk 0:02:59]}  e6 {[%clk 0:02:54]} 3. e3 {[%clk 0:02:59]}  d5 {[%clk 0:02:54]} 4. Nd2 {[%clk 0:02:58]}  Bd6 {[%clk 0:02:54]} 5. Bg3 {[%clk 0:02:57]}  O-O {[%clk 0:02:54]} 6. Ngf3 {[%clk 0:02:57]}  c5 {[%clk 0:02:53]} 7. c3 {[%clk 0:02:56]}  Qc7 {[%clk 0:02:53]} 8. dxc5 {[%clk 0:02:54]}  Qxc5 {[%clk 0:02:53]} 9. Bd3 {[%clk 0:02:54]}  Qc7 {[%clk 0:02:25]} 10. Qe2 {[%clk 0:02:50]}  Nbd7 {[%clk 0:02:21]} 11. e4 {[%clk 0:02:50]}  dxe4 {[%clk 0:02:14]} 12. Nxe4 {[%clk 0:02:48]}  Nxe4 {[%clk 0:02:15]} 13. Bxe4 {[%clk 0:02:46]}  Nf6 {[%clk 0:02:13]} 14. Bc2 {[%clk 0:02:43]}  b6 {[%clk 0:01:46]} 15. O-O-O {[%clk 0:02:40]}  Bxg3 {[%clk 0:01:42]} 16. hxg3 {[%clk 0:02:38]}  h6 {[%clk 0:01:41]} 17. Ne5 {[%clk 0:02:33]}  Bb7 {[%clk 0:01:35]} 18. g4 {[%clk 0:02:17]}  Rad8 {[%clk 0:01:32]} 19. Rxd8 {[%clk 0:02:05]}  Rxd8 {[%clk 0:01:31]} 20. g5 {[%clk 0:02:04]}  hxg5 {[%clk 0:01:30]} 21. f3 {[%clk 0:01:31]}  Rd5 {[%clk 0:01:19]} 22. Ng4 {[%clk 0:01:06]}  Qf4+ {[%clk 0:01:17]} 23. Kb1 {[%clk 0:00:58]}  Nxg4 {[%clk 0:00:57]} 24. fxg4 {[%clk 0:00:56]}  g6 {[%clk 0:00:55]} 25. Bxg6 {[%clk 0:00:34]}  Re5 {[%clk 0:00:24]} 26. Bh7+ {[%clk 0:00:17]}  Kg7 {[%clk 0:00:23]} 27. Qc2 {[%clk 0:00:16]}  Be4 {[%clk 0:00:22]} 28. Bxe4 {[%clk 0:00:16]}  Qxe4 {[%clk 0:00:23]} 29. Rd1 {[%clk 0:00:13]}  Qxc2+ {[%clk 0:00:23]} 30. Kxc2 {[%clk 0:00:13]}  Re4 {[%clk 0:00:20]} 31. Rd4 {[%clk 0:00:11]}  Re2+ {[%clk 0:00:20]} 32. Rd2 {[%clk 0:00:08]}  Re3 {[%clk 0:00:18]} 33. Rd7 {[%clk 0:00:07]}  Rg3 {[%clk 0:00:18]} 34. Rxa7 {[%clk 0:00:07]}  Rxg4 {[%clk 0:00:18]} 35. Rb7 {[%clk 0:00:05]}  Rxg2+ {[%clk 0:00:19]} 36. Kb3 {[%clk 0:00:04]}  g4 {[%clk 0:00:19]} 37. Rxb6 {[%clk 0:00:04]}  g3 {[%clk 0:00:20]} 38. Rb4 {[%clk 0:00:04]}  f5 {[%clk 0:00:20]} 39. a4 {[%clk 0:00:04]}  Rxb2+ {[%clk 0:00:17]} 40. Kxb2 {[%clk 0:00:02]}  g2 {[%clk 0:00:18]} 41. Rb7+ {[%clk 0:00:01]}  Kf6 {[%clk 0:00:17]} 0-1

[Event "January 9 Early 2024"]
[Site "https://www.chess.com"]
[Date "2024.01.11"]
[Round "5"]
[White "Molina, Roberto Junio Brito"]
[Black "Tomb, Maroun"]
[Result "1/2-1/2"]
[Board "187"]
[TimeControl "180+1"]
[WhiteFideId "2109450"]
[BlackFideId "5300398"]
[WhiteElo "2805"]
[BlackElo "2596"]
[WhiteTeam "BRA"]
[BlackTeam "LBN"]
[WhiteClock "0:00:23"]
[BlackClock "0:00:40"]

1. d4 {[%clk 0:03:00]}  d6 {[%clk 0:02:59]} 2. e4 {[%clk 0:02:57]}  Nf6 {[%clk 0:02:59]} 3. Nc3 {[%clk 0:02:57]}  e5 {[%clk 0:03:00]} 4. Nf3 {[%clk 0:02:56]}  Nbd7 {[%clk 0:03:00]} 5. Bc4 {[%clk 0:02:55]}  Be7 {[%clk 0:03:01]} 6. O-O {[%clk 0:02:55]}  c6 {[%clk 0:03:01]} 7. a4 {[%clk 0:02:55]}  Qc7 {[%clk 0:03:01]} 8. Re1 {[%clk 0:02:55]}  h6 {[%clk 0:03:02]} 9. b3 {[%clk 0:02:54]}  Nf8 {[%clk 0:03:02]} 10. Bf1 {[%clk 0:02:54]}  Ng6 {[%clk 0:03:03]} 11. h3 {[%clk 0:02:53]}  O-O {[%clk 0:03:02]} 12. Bb2 {[%clk 0:02:49]}  Be6 {[%clk 0:03:02]} 13. Qd2 {[%clk 0:02:45]}  Rad8 {[%clk 0:02:58]} 14. Rad1 {[%clk 0:02:44]}  a6 {[%clk 0:02:57]} 15. Qe3 {[%clk 0:02:23]}  b5 {[%clk 0:02:57]} 16. d5 {[%clk 0:02:18]}  cxd5 {[%clk 0:02:52]} 17. exd5 {[%clk 0:02:16]}  Bf5 {[%clk 0:02:45]} 18. axb5 {[%clk 0:02:16]}  Bxc2 {[%clk 0:02:35]} 19. Rc1 {[%clk 0:02:14]}  Bxb3 {[%clk 0:02:35]} 20. bxa6 {[%clk 0:02:14]}  Qa5 {[%clk 0:02:16]} 21. Ra1 {[%clk 0:02:09]}  Qb4 {[%clk 0:02:09]} 22. Ba3 {[%clk 0:02:03]}  Qf4 {[%clk 0:02:03]} 23. Nd2 {[%clk 0:01:52]}  Bxd5 {[%clk 0:02:01]} 24. Qxf4 {[%clk 0:01:47]}  Nxf4 {[%clk 0:02:01]} 25. g3 {[%clk 0:01:41]}  Ne6 {[%clk 0:01:57]} 26. Rxe5 {[%clk 0:01:31]}  dxe5 {[%clk 0:01:52]} 27. Bxe7 {[%clk 0:01:32]}  Ba8 {[%clk 0:01:46]} 28. Bxd8 {[%clk 0:01:30]}  Rxd8 {[%clk 0:01:45]} 29. Nc4 {[%clk 0:01:31]}  e4 {[%clk 0:01:37]} 30. Nb6 {[%clk 0:01:22]}  Nd4 {[%clk 0:01:21]} 31. Bg2 {[%clk 0:01:17]}  Rb8 {[%clk 0:01:02]} 32. Nxa8 {[%clk 0:01:14]}  Rxa8 {[%clk 0:01:01]} 33. Nxe4 {[%clk 0:01:07]}  Nxe4 {[%clk 0:00:59]} 34. Bxe4 {[%clk 0:01:08]}  Ra7 {[%clk 0:00:59]} 35. Bb7 {[%clk 0:01:01]}  Kf8 {[%clk 0:00:55]} 36. Re1 {[%clk 0:00:49]}  Nb5 {[%clk 0:00:51]} 37. Rc1 {[%clk 0:00:43]}  Ke7 {[%clk 0:00:44]} 38. Rc5 {[%clk 0:00:37]}  Nd6 {[%clk 0:00:39]} 39. Rc7+ {[%clk 0:00:36]}  Kd8 {[%clk 0:00:39]} 40. Rc6 {[%clk 0:00:24]}  Nxb7 {[%clk 0:00:39]} 41. axb7 {[%clk 0:00:24]}  Rxb7 {[%clk 0:00:40]} 42. h4 {[%clk 0:00:24]}  h5 {[%clk 0:00:38]} 43. Kg2 {[%clk 0:00:21]}  Rb3 {[%clk 0:00:35]} 44. Rc5 {[%clk 0:00:20]}  g6 {[%clk 0:00:35]} 45. Re5 {[%clk 0:00:20]}  Kd7 {[%clk 0:00:35]} 46. Re1 {[%clk 0:00:20]}  Rd3 {[%clk 0:00:35]} 47. Re2 {[%clk 0:00:19]}  Kd6 {[%clk 0:00:35]} 48. Re1 {[%clk 0:00:19]}  Kd7 {[%clk 0:00:35]} 49. Re4 {[%clk 0:00:18]}  Kd6 {[%clk 0:00:36]} 50. Kf1 {[%clk 0:00:18]}  Kd7 {[%clk 0:00:35]} 51. Ke2 {[%clk 0:00:18]}  Rd6 {[%clk 0:00:35]} 52. Kf3 {[%clk 0:00:18]}  Rf6+ {[%clk 0:00:36]} 53. Ke3 {[%clk 0:00:19]}  Re6 {[%clk 0:00:35]} 54. Kf4 {[%clk 0:00:18]}  Rxe4+ {[%clk 0:00:35]} 55. Kxe4 {[%clk 0:00:19]}  Ke6 {[%clk 0:00:35]} 56. f3 {[%clk 0:00:19]}  f6 {[%clk 0:00:35]} 57. g4 {[%clk 0:00:18]}  hxg4 {[%clk 0:00:34]} 58. fxg4 {[%clk 0:00:19]}  f5+ {[%clk 0:00:34]} 59. gxf5+ {[%clk 0:00:18]}  gxf5+ {[%clk 0:00:35]} 60. Kf4 {[%clk 0:00:19]}  Kf6 {[%clk 0:00:36]} 61. h5 {[%clk 0:00:19]}  Kg7 {[%clk 0:00:36]} 62. Kxf5 {[%clk 0:00:19]}  Kh6 {[%clk 0:00:37]} 63. Kg4 {[%clk 0:00:20]}  Kh7 {[%clk 0:00:38]} 64. Kg5 {[%clk 0:00:21]}  Kh8 {[%clk 0:00:39]} 65. h6 {[%clk 0:00:22]}  Kg8 {[%clk 0:00:39]} 66. Kg6 {[%clk 0:00:23]}  Kh8 {[%clk 0:00:40]} 67. h7 {[%clk 0:00:23]} 1/2-1/2

[Event "January 9 Early 2024"]
[Site "https://www.chess.com"]
[Date "2024.01.11"]
[Round "5"]
[White "Tristan, Leonardo"]
[Black "Terry, Renato"]
[Result "0-1"]
[Board "188"]
[TimeControl "180+1"]
[WhiteFideId "113816"]
[BlackFideId "3803457"]
[WhiteElo "2733"]
[BlackElo "2985"]
[WhiteTeam "ARG"]
[BlackTeam "PER"]
[WhiteClock "0:00:02"]
[BlackClock "0:00:22"]

1. d4 {[%clk 0:03:00]}  e6 {[%clk 0:02:59]} 2. Nf3 {[%clk 0:02:59]}  Nf6 {[%clk 0:03:00]} 3. Bf4 {[%clk 0:02:59]}  b6 {[%clk 0:03:00]} 4. e3 {[%clk 0:02:59]}  Bb7 {[%clk 0:03:00]} 5. Nbd2 {[%clk 0:02:59]}  Bd6 {[%clk 0:03:00]} 6. Bg3 {[%clk 0:02:59]}  Bxg3 {[%clk 0:03:00]} 7. hxg3 {[%clk 0:02:59]}  d6 {[%clk 0:03:00]} 8. Bd3 {[%clk 0:02:57]}  Nbd7 {[%clk 0:03:01]} 9. e4 {[%clk 0:02:51]}  e5 {[%clk 0:03:01]} 10. c3 {[%clk 0:02:51]}  Qe7 {[%clk 0:03:00]} 11. Qe2 {[%clk 0:02:47]}  a6 {[%clk 0:02:59]} 12. O-O-O {[%clk 0:02:39]}  b5 {[%clk 0:02:53]} 13. Kb1 {[%clk 0:02:39]}  c5 {[%clk 0:02:52]} 14. dxe5 {[%clk 0:02:30]}  dxe5 {[%clk 0:02:52]} 15. c4 {[%clk 0:02:25]}  b4 {[%clk 0:02:52]} 16. Nh4 {[%clk 0:02:13]}  g6 {[%clk 0:02:51]} 17. g4 {[%clk 0:02:13]}  O-O-O {[%clk 0:02:41]} 18. g5 {[%clk 0:02:03]}  Nh5 {[%clk 0:02:41]} 19. Qe3 {[%clk 0:01:54]}  Nf4 {[%clk 0:02:37]} 20. Nhf3 {[%clk 0:01:49]}  Nxg2 {[%clk 0:02:27]} 21. Qe2 {[%clk 0:01:49]}  Nf4 {[%clk 0:02:28]} 22. Qe3 {[%clk 0:01:50]}  f6 {[%clk 0:02:17]} 23. gxf6 {[%clk 0:01:42]}  Nxf6 {[%clk 0:02:18]} 24. Bc2 {[%clk 0:01:43]}  Ng4 {[%clk 0:02:17]} 25. Qe1 {[%clk 0:01:41]}  Rd7 {[%clk 0:02:07]} 26. Nb3 {[%clk 0:01:35]}  Rxd1+ {[%clk 0:02:07]} 27. Bxd1 {[%clk 0:01:36]}  Nd3 {[%clk 0:02:02]} 28. Qe2 {[%clk 0:01:23]}  Ndxf2 {[%clk 0:01:54]} 29. Re1 {[%clk 0:01:21]}  h5 {[%clk 0:01:29]} 30. Bc2 {[%clk 0:01:21]}  Nh3 {[%clk 0:01:26]} 31. Qf1 {[%clk 0:01:17]}  Nf4 {[%clk 0:01:24]} 32. Qg1 {[%clk 0:01:17]}  Ne6 {[%clk 0:01:24]} 33. Nfd2 {[%clk 0:00:59]}  Rd8 {[%clk 0:01:21]} 34. Nf1 {[%clk 0:00:55]}  Nd4 {[%clk 0:01:18]} 35. Bd1 {[%clk 0:00:52]}  Qh4 {[%clk 0:01:14]} 36. Ne3 {[%clk 0:00:33]}  Nxb3 {[%clk 0:01:03]} 37. axb3 {[%clk 0:00:27]}  Nxe3 {[%clk 0:00:56]} 38. Rxe3 {[%clk 0:00:27]}  Qf6 {[%clk 0:00:46]} 39. Bc2 {[%clk 0:00:09]}  h4 {[%clk 0:00:42]} 40. Re2 {[%clk 0:00:07]}  Kb8 {[%clk 0:00:29]} 41. Ka2 {[%clk 0:00:04]}  Qb6 {[%clk 0:00:25]} 42. Rg2 {[%clk 0:00:04]}  h3 {[%clk 0:00:24]} 43. Rxg6 {[%clk 0:00:03]}  h2 {[%clk 0:00:24]} 44. Qg5 {[%clk 0:00:02]}  Qa5+ {[%clk 0:00:21]} 45. Kb1 {[%clk 0:00:02]}  h1=Q+ {[%clk 0:00:22]} 0-1